fUST/lending_fUST_20250312
["ID","MTS","AMOUNT","RATE_DAILY","PERIOD"]
[356005551,1741793439090,-10129.0,0.00016419,3]
[356005552,1741793439100,-15611.0,0.00016419,3]
[356005553,1741793439110,-16039.0,0.00016419,3]
[356005554,1741793439123,-24779.0,0.00016419,3]
[356005555,1741793439132,-500.0,0.00016429,2]
[356005556,1741793439142,-500.0,0.00016433,2]
[356005557,1741793439151,-1000.0,0.00016438,2]
[356005558,1741793439161,-500.0,0.00016438,2]
[356005559,1741793439170,-500.0,0.00016438,2]
[356005560,1741793439179,-500.0,0.00016438,2]
[356005561,1741793439188,-500.0,0.00016438,2]
[356005562,1741793439200,-500.0,0.00016438,2]
[356005563,1741793439210,-500.0,0.00016438,2]
[356005564,1741793439219,-500.0,0.00016438,2]
[356005565,1741793439230,-500.0,0.00016438,2]
[356005566,1741793439239,-500.0,0.00016438,2]
[356005567,1741793439248,-500.0,0.00016438,2]
[356005568,1741793439257,-500.0,0.00016438,2]
[356005569,1741793439267,-500.0,0.00016438,2]
[356005570,1741793439276,-500.0,0.00016438,2]
[356005571,1741793439286,-500.0,0.00016438,2]
[356005572,1741793439295,-500.0,0.00016438,2]
[356005573,1741793439305,-404.31186631,0.00016438,2]
[356005574,1741793439314,-500.0,0.00016438,2]
[356005575,1741793439323,-290.43118663,0.00016438,2]
[356005576,1741793439332,-500.0,0.00016438,2]
[356005577,1741793439342,-500.0,0.00016438,2]
[356005578,1741793439351,-500.0,0.00016438,2]
[356005579,1741793439361,-500.0,0.00016438,2]
[356005580,1741793439370,-1909.75,0.00016456,2]
[356005581,1741793439380,-1909.75,0.00016456,2]
[356005582,1741793439389,-1909.75,0.00016456,2]
[356005583,1741793439398,-1909.75,0.00016456,2]
[356005584,1741793439407,-1909.75,0.00016456,2]
[356005585,1741793439417,-1909.75,0.00016456,2]
[356005586,1741793439427,-1909.75,0.00016456,2]
[356005587,1741793439437,-1909.75,0.00016456,2]
[356005588,1741793439447,-1909.75,0.00016456,2]
[356005589,1741793439456,-1909.75,0.00016456,2]
[356005590,1741793439465,-1909.75,0.00016456,2]
[356005591,1741793439477,-1909.75,0.00016456,2]
[356005592,1741793439486,-1909.75,0.00016456,2]
[356005593,1741793439495,-1909.75,0.00016456,2]
[356005594,1741793439505,-1909.75,0.00016456,2]
[356005595,1741793439514,-1909.75,0.00016456,2]
[356005596,1741793439523,-1909.75,0.00016456,2]
[356005597,1741793439533,-1909.75,0.00016456,2]
[356005598,1741793439543,-1909.75,0.00016456,2]
[356005599,1741793439553,-1909.75,0.00016456,2]
[356005600,1741793439563,-1909.75,0.00016456,2]
[356005601,1741793439572,-1909.75,0.00016456,2]
[356005602,1741793439582,-1909.75,0.00016456,2]
[356005603,1741793439592,-1909.91691904,0.00016456,2]
[356005604,1741793439602,-645.2214,0.00016457,2]
[356005605,1741793439611,-669.0945918,0.00016512,2]
[356005606,1741793439621,-693.8510917,0.00016567,2]
[356005607,1741793439631,-719.52358209,0.00016622,2]
[356005608,1741793439640,-746.14595463,0.00016677,2]
[356005609,1741793439649,-160.90502123,0.000167,2]
[356005610,1741793439659,-468.18783349,0.000167,2]
[356005611,1741793439670,-331.27156294,0.000167,2]
[356005612,1741793439680,-424.84117557,0.000167,2]
[356005613,1741793439690,-419.94782723,0.000167,2]
[356005614,1741793439700,-500.0,0.000167,2]
[356005615,1741793439710,-155.35797803,0.000167,2]
[356005616,1741793439721,-577.76285036,0.000167,2]
[356005617,1741793439732,-288.70828636,0.000167,2]
[356005618,1741793439742,-500.0,0.000167,2]
[356005619,1741793439751,-500.0,0.000167,2]
[356005620,1741793439761,-500.0,0.000167,2]
[356005621,1741793439771,-773.75335495,0.00016732,2]
[356005622,1741793439781,-194.0,0.0001675,2]
[356005623,1741793439791,-802.38222908,0.00016787,2]
[356005624,1741793439801,-832.07037156,0.00016842,2]
[356005625,1741793439811,-1000.0,0.0001688,2]
[356005626,1741793439820,-862.8569753,0.00016897,2]
[356005627,1741793439830,-151.0,0.000169,2]
[356005628,1741793439840,-894.78268339,0.00016952,2]
[356005629,1741793439849,-927.88964268,0.00017007,2]
[356005630,1741793439859,-962.22155946,0.00017062,2]
[356005631,1741793439869,-997.82375716,0.00017117,2]
[356005632,1741793439879,-249.0,0.00017127,2]
[356005633,1741793439890,-1034.74323617,0.00017172,2]
[356005634,1741793439900,-500.0,0.00017225,2]
[356005635,1741793439910,-1073.02873591,0.00017227,2]
[356005636,1741793439919,-1000.0,0.00017255,2]
[356005637,1741793439929,-1112.73079914,0.00017282,2]
[356005638,1741793439939,-1153.9018387,0.00017337,2]
[356005639,1741793439949,-2478.26198367,0.00017483,2]
[356005640,1741793439959,-151.0,0.000175,2]
[356005641,1741793439968,-320.0,0.00017512,2]
[356005642,1741793439981,-325.71584451,0.00017659,2]
[356005643,1741793439990,-420.0,0.00017868,2]
[356005644,1741793440000,-410.0,0.00017906,2]
[356005645,1741793440009,-2509.88,0.00018,2]
[356005646,1741793440019,-148113.77342684,0.00018,2]
[356005647,1741793440029,-151.0,0.000181,2]
[356005648,1741793440039,-999.999999,0.00018298,2]
[356005649,1741793440049,-336.0,0.00018309,3]
[356005650,1741793440059,-1206.98220415,0.000185,2]
[356005651,1741793440068,-194.88,0.000186,2]
[356005652,1741793440078,-151.0,0.000187,2]
[356005653,1741793440088,-211.64123117,0.00019,120]
[356005654,1741793440098,-325.71584451,0.00019045,2]
[356005655,1741793440107,-151.0,0.000193,2]
[356005656,1741793440121,-151.0,0.000193,2]
[356005657,1741793440130,-587.0,0.00019529,2]
[356005658,1741793440140,-1567.06,0.00019671,2]
[356005659,1741793440151,-1567.06,0.00019671,2]
[356005660,1741793440161,-1567.06,0.00019671,2]
[356005661,1741793440170,-1567.06,0.00019671,2]
[356005662,1741793440180,-1567.06,0.00019671,2]
[356005663,1741793440190,-1567.06,0.00019671,2]
[356005664,1741793440199,-1567.06,0.00019671,2]
[356005665,1741793440209,-1567.06,0.00019671,2]
[356005666,1741793440219,-1567.06,0.00019671,2]
[356005667,1741793440229,-1567.06,0.00019671,2]
[356005668,1741793440239,-1567.06,0.00019671,2]
[356005669,1741793440249,-1567.06,0.00019671,2]
[356005670,1741793440259,-1567.06,0.00019671,2]
[356005671,1741793440268,-1567.06,0.00019671,2]
[356005672,1741793440278,-1567.06,0.00019671,2]
[356005673,1741793440287,-1567.06,0.00019671,2]
[356005674,1741793440297,-1567.06,0.00019671,2]
[356005675,1741793440306,-1567.06,0.00019671,2]
[356005676,1741793440315,-1567.06,0.00019671,2]
[356005677,1741793440324,-1567.06,0.00019671,2]
[356005678,1741793440334,-1567.06,0.00019671,2]
[356005679,1741793440344,-1567.06,0.00019671,2]
[356005681,1741793440354,-1567.06,0.00019671,2]
[356005683,1741793440363,-1567.16123723,0.00019671,2]
[356005684,1741793440373,-249.7869188,0.000197,2]
[356005686,1741793440382,-151.0,0.000197,2]
[356005688,1741793440391,-151.0,0.000198,2]
[356005689,1741793440401,-151.0,0.000199,2]
[356005690,1741793440411,-160.0,0.0002,3]
[356005691,1741793440420,-1796.16450782,0.0002,30]
[356005692,1741793440430,-3625.24098579,0.0002,120]
[356005693,1741793440440,-160.0,0.0002,3]
[356005694,1741793440449,-151.0,0.000202,4]
[356005695,1741793440458,-2200.0,0.00020327,2]
[356005696,1741793440468,-10712.62712242,0.0002035,2]
[356005697,1741793440478,-324446.76893,0.00020363,2]
[356005698,1741793440488,-151.0,0.000204,4]
[356005699,1741793440498,-151.0,0.000204,4]
[356005700,1741793440508,-160.0,0.00020424,2]
[356005701,1741793440517,-15577.25547611,0.00020424,2]
[356005702,1741793440527,-160.0,0.00020424,2]
[356005704,1741793440536,-416.66666667,0.00020424,2]
[356005705,1741793440545,-325.71584451,0.00020431,2]
[356005707,1741793440555,-540.0,0.00020523,2]
[356005709,1741793440564,-2026.043,0.00020523,2]
[356005711,1741793440574,-2272.0,0.00020523,2]
[356005712,1741793440584,-398.0,0.00020523,2]
[356005713,1741793440594,-398.0,0.00020523,2]
[356005714,1741793440603,-150.0,0.00020548,2]
[356005715,1741793440613,-151.0,0.000208,4]
[356005716,1741793440623,-151.0,0.00021,4]
[356005717,1741793440632,-151.0,0.00021,4]
[356005718,1741793440641,-228.32513254,0.00021096,2]
[356005719,1741793440651,-2305.53660184,0.000212,30]
[356005720,1741793440661,-823.0,0.00021344,2]
[356005721,1741793440670,-151.0,0.000214,4]
[356005722,1741793440680,-719.17848329,0.00021414,2]
[356005723,1741793440690,-151.0,0.000216,4]
[356005724,1741793440699,-151.0,0.000216,4]
[356005725,1741793440709,-3000.0,0.00021817,2]
[356005726,1741793440719,-325.71584451,0.00021817,2]
[356005728,1741793440729,-1000.0,0.00021852,2]
[356005729,1741793440738,-1000.0,0.00021852,2]
[356005731,1741793440748,-1000.0,0.00021852,2]
[356005733,1741793440757,-1000.0,0.00021852,2]
[356005735,1741793440767,-1000.0,0.00021852,2]
[356005737,1741793440776,-1000.0,0.00021852,2]
[356005739,1741793440786,-1000.0,0.00021852,2]
[356005741,1741793440795,-1000.0,0.00021852,2]
[356005743,1741793440804,-1000.0,0.00021852,2]
[356005745,1741793440814,-1028.53709032,0.00021852,2]
[356005747,1741793440824,-1000.0,0.00021852,2]
[356005749,1741793440833,-1000.0,0.00021852,2]
[356005754,1741793440955,-1003.50763077,0.00021852,2]
[356005755,1741793440965,-1000.0,0.00021852,2]
[356005756,1741793440974,-1000.0,0.00021852,2]
[356005757,1741793440984,-1000.0,0.00021852,2]
[356005758,1741793440994,-787.55736333,0.00021852,2]
[356005759,1741793441004,-1000.0,0.00021852,2]
[356005760,1741793441013,-1000.0,0.00021852,2]
[356005761,1741793441023,-1000.0,0.00021852,2]
[356005762,1741793441033,-1000.0,0.00021852,2]
[356005763,1741793441043,-558.62141936,0.00021852,2]
[356005764,1741793441052,-1000.0,0.00021852,2]
[356005765,1741793441062,-1000.0,0.00021852,2]
[356005766,1741793441072,-1000.0,0.00021852,2]
[356005767,1741793441081,-791.23248099,0.00021852,2]
[356005768,1741793441091,-1000.0,0.00021852,2]
[356005769,1741793441100,-1000.0,0.00021852,2]
[356005770,1741793441112,-719.17848329,0.00021896,2]
[356005771,1741793441124,-1051.70656323,0.00021908,2]
[356005772,1741793441134,-1000.0,0.00021913,2]
[356005773,1741793441144,-518.10807815,0.00021917,2]
[356005774,1741793441154,-500.0,0.00021917,2]
[356005775,1741793441163,-500.0,0.00021917,2]
[356005776,1741793441173,-500.0,0.00021917,2]
[356005777,1741793441182,-623.93223261,0.00021917,2]
[356005778,1741793441193,-503.56992451,0.00021917,2]
[356005779,1741793441202,-500.0,0.00021917,2]
[356005780,1741793441212,-500.0,0.00021917,2]
[356005781,1741793441221,-500.0,0.00021917,2]
[356005782,1741793441232,-508.32868218,0.00021917,2]
[356005783,1741793441242,-589.18,0.00021917,2]
[356005784,1741793441251,-770.4,0.00021917,2]
[356005785,1741793441261,-548.9,0.00021917,2]
[356005786,1741793441270,-500.0,0.00021917,2]
[356005787,1741793441279,-500.0,0.00021917,2]
[356005788,1741793441289,-500.0,0.00021917,2]
[356005789,1741793441298,-763.1,0.00021917,2]
[356005790,1741793441308,-891.72,0.00021917,2]
[356005791,1741793441317,-500.0,0.00021917,2]
[356005792,1741793441327,-512.03991349,0.00021917,2]
[356005793,1741793441336,-500.0,0.00021917,2]
[356005794,1741793441345,-500.0,0.00021917,2]
[356005795,1741793441355,-500.0,0.00021917,2]
[356005796,1741793441364,-567.07,0.00021917,2]
[356005797,1741793441374,-500.0,0.00021917,2]
[356005798,1741793441384,-313.66917543,0.00021917,2]
[356005799,1741793441394,-647.85181414,0.00021917,2]
[356005800,1741793441404,-500.0,0.00021917,2]
[356005801,1741793441413,-500.0,0.00021917,2]
[356005802,1741793441423,-546.65,0.00021917,2]
[356005803,1741793441432,-511.92,0.00021917,2]
[356005804,1741793441441,-595.51670173,0.00021917,2]
[356005805,1741793441451,-428.4761151,0.00021917,2]
[356005806,1741793441461,-270.838071,0.00021917,2]
[356005807,1741793441470,-562.06,0.00021917,2]
[356005808,1741793441480,-501.36794225,0.00021917,2]
[356005809,1741793441489,-500.0,0.00021917,2]
[356005810,1741793441499,-500.0,0.00021917,2]
[356005811,1741793441508,-500.0,0.00021917,2]
[356005812,1741793441517,-500.0,0.00021917,2]
[356005813,1741793441527,-500.0,0.00021917,2]
[356005814,1741793441537,-500.0,0.00021917,2]
[356005815,1741793441546,-500.0,0.00021917,2]
[356005816,1741793441556,-500.0,0.00021917,2]
[356005817,1741793441566,-621.34205604,0.00021917,2]
[356005818,1741793441575,-500.0,0.00021917,2]
[356005819,1741793441585,-500.0,0.00021917,2]
[356005820,1741793441595,-500.0,0.00021917,2]
[356005821,1741793441605,-500.0,0.00021917,2]
[356005822,1741793441614,-500.0,0.00021917,2]
[356005823,1741793441623,-515.81,0.00021917,2]
[356005824,1741793441634,-500.0,0.00021917,2]
[356005825,1741793441643,-500.0,0.00021917,2]
[356005826,1741793441653,-500.0,0.00021917,2]
[356005827,1741793441663,-500.0,0.00021917,2]
[356005828,1741793441672,-500.0,0.00021917,2]
[356005829,1741793441681,-500.0,0.00021917,2]
[356005830,1741793441691,-514.82313136,0.00021917,2]
[356005831,1741793441700,-508.88319553,0.00021917,2]
[356005832,1741793441709,-500.0,0.00021917,2]
[356005833,1741793441719,-500.0,0.00021917,2]
[356005834,1741793441728,-500.0,0.00021917,2]
[356005835,1741793441738,-513.8267618,0.00021917,2]
[356005836,1741793441747,-500.0,0.00021917,2]
[356005837,1741793441756,-500.0,0.00021917,2]
[356005838,1741793441766,-500.0,0.00021917,2]
[356005839,1741793441776,-200.0,0.00021917,2]
[356005840,1741793441786,-500.0,0.00021917,2]
[356005841,1741793441796,-500.0,0.00021917,2]
[356005842,1741793441805,-500.0,0.00021917,2]
[356005843,1741793441815,-500.0,0.00021917,2]
[356005844,1741793441824,-500.0,0.00021917,2]
[356005845,1741793441833,-500.0,0.00021917,2]
[356005846,1741793441843,-500.0,0.00021917,2]
[356005847,1741793441852,-500.0,0.00021917,2]
[356005848,1741793441862,-500.0,0.00021917,2]
[356005849,1741793441871,-500.0,0.00021917,2]
[356005850,1741793441881,-500.0,0.00021917,2]
[356005851,1741793441890,-160.31971926,0.00021917,2]
[356005852,1741793441899,-500.0,0.00021917,2]
[356005853,1741793441909,-500.0,0.00021917,2]
[356005854,1741793441919,-661.64,0.00021917,2]
[356005855,1741793441928,-500.0,0.00021917,2]
[356005856,1741793441937,-500.0,0.00021917,2]
[356005857,1741793441947,-500.0,0.00021917,2]
[356005858,1741793441956,-500.0,0.00021917,2]
[356005859,1741793441965,-500.0,0.00021917,2]
[356005860,1741793441975,-500.0,0.00021917,2]
[356005861,1741793441985,-500.0,0.00021917,2]
[356005862,1741793441995,-500.0,0.00021917,2]
[356005863,1741793442004,-500.0,0.00021917,2]
[356005864,1741793442013,-500.0,0.00021917,2]
[356005865,1741793442023,-500.0,0.00021917,2]
[356005866,1741793442033,-500.0,0.00021917,2]
[356005867,1741793442042,-500.0,0.00021917,2]
[356005868,1741793442053,-500.0,0.00021917,2]
[356005869,1741793442063,-500.0,0.00021917,2]
[356005870,1741793442072,-500.0,0.00021917,2]
[356005871,1741793442081,-500.0,0.00021917,2]
[356005872,1741793442091,-609.8,0.00021917,2]
[356005873,1741793442101,-1131.2,0.00021917,2]
[356005874,1741793442111,-500.0,0.00021917,2]
[356005875,1741793442123,-946.57,0.00021917,2]
[356005876,1741793442132,-500.0,0.00021917,2]
[356005877,1741793442142,-500.0,0.00021917,2]
[356005878,1741793442153,-221.23938412,0.00021917,2]
[356005879,1741793442162,-500.0,0.00021917,2]
[356005880,1741793442172,-500.0,0.00021917,2]
[356005881,1741793442181,-826.09,0.00021917,2]
[356005882,1741793442190,-500.0,0.00021917,2]
[356005883,1741793442201,-500.0,0.00021917,2]
[356005884,1741793442211,-500.0,0.00021917,2]
[356005885,1741793442220,-516.54522575,0.00021917,2]
[356005886,1741793442230,-508.77110477,0.00021917,2]
[356005887,1741793442240,-500.0,0.00021917,2]
[356005888,1741793442250,-500.0,0.00021917,2]
[356005889,1741793442259,-500.0,0.00021917,2]
[356005890,1741793442269,-500.0,0.00021917,2]
[356005891,1741793442278,-500.0,0.00021917,2]
[356005892,1741793442288,-500.0,0.00021917,2]
[356005893,1741793442298,-500.0,0.00021917,2]
[356005894,1741793442308,-500.0,0.00021917,2]
[356005895,1741793442317,-500.0,0.00021917,2]
[356005896,1741793442327,-500.0,0.00021917,2]
[356005897,1741793442336,-500.0,0.00021917,2]
[356005898,1741793442345,-500.0,0.00021917,2]
[356005899,1741793442354,-500.0,0.00021917,2]
[356005900,1741793442364,-500.0,0.00021917,2]
[356005901,1741793442373,-500.0,0.00021917,2]
[356005902,1741793442384,-500.0,0.00021917,2]
[356005903,1741793442393,-495.0,0.00021917,2]
[356005904,1741793442403,-514.86665195,0.00021917,2]
[356005905,1741793442412,-502.14129635,0.00021917,2]
[356005906,1741793442421,-1062.19,0.00021917,2]
[356005907,1741793442431,-500.0,0.00021917,2]
[356005908,1741793442440,-500.0,0.00021917,2]
[356005909,1741793442449,-500.0,0.00021917,2]
[356005910,1741793442459,-500.0,0.00021917,2]
[356005911,1741793442468,-500.0,0.00021917,2]
[356005912,1741793442478,-504.73056009,0.00021917,2]
[356005913,1741793442487,-500.0,0.00021917,2]
[356005914,1741793442496,-500.0,0.00021917,2]
[356005915,1741793442505,-597.21,0.00021917,2]
[356005916,1741793442515,-500.0,0.00021917,2]
[356005917,1741793442524,-500.0,0.00021917,2]
[356005918,1741793442533,-874.59,0.00021917,2]
[356005919,1741793442543,-639.77,0.00021917,2]
[356005920,1741793442553,-605.08,0.00021917,5]
[356005921,1741793442563,-501.83585951,0.00021917,2]
[356005922,1741793442573,-500.0,0.00021917,2]
[356005923,1741793442582,-500.0,0.00021917,2]
[356005924,1741793442592,-500.0,0.00021917,2]
[356005925,1741793442601,-1294.83,0.00021917,2]
[356005926,1741793442610,-1330.17,0.00021917,2]
[356005927,1741793442620,-500.0,0.00021917,2]
[356005928,1741793442629,-500.0,0.00021917,2]
[356005929,1741793442638,-500.0,0.00021917,2]
[356005930,1741793442648,-500.0,0.00021917,2]
[356005931,1741793442657,-500.0,0.00021917,2]
[356005932,1741793442666,-500.0,0.00021917,2]
[356005933,1741793442676,-500.0,0.00021917,2]
[356005934,1741793442685,-1279.74,0.00021917,2]
[356005935,1741793442694,-500.0,0.00021917,2]
[356005936,1741793442703,-500.0,0.00021917,2]
[356005937,1741793442712,-500.0,0.00021917,2]
[356005938,1741793442721,-500.00000001,0.00021917,2]
[356005939,1741793442733,-500.0,0.00021917,2]
[356005940,1741793442742,-500.39134433,0.00021917,2]
[356005941,1741793442751,-500.0,0.00021917,2]
[356005942,1741793442761,-500.0,0.00021917,2]
[356005943,1741793442770,-500.0,0.00021917,2]
[356005944,1741793442780,-500.0,0.00021917,2]
[356005945,1741793442789,-500.0,0.00021917,2]
[356005946,1741793442799,-500.0,0.00021917,2]
[356005948,1741793442916,-1722.61,0.00021917,2]
[356005949,1741793442926,-500.0,0.00021917,2]
[356005951,1741793442935,-507.63,0.00021917,2]
[356005952,1741793442944,-549.45826415,0.00021917,2]
[356005954,1741793442954,-500.0,0.00021917,2]
[356005956,1741793442963,-500.0,0.00021917,2]
[356005958,1741793442973,-527.04,0.00021917,2]
[356005960,1741793442983,-500.0,0.00021917,2]
[356005961,1741793442993,-500.0,0.00021917,2]
[356005963,1741793443003,-500.0,0.00021917,2]
[356005965,1741793443012,-500.0,0.00021917,2]
[356005967,1741793443021,-502.8315158,0.00021917,2]
[356005969,1741793443031,-509.3799871,0.00021917,2]
[356005970,1741793443040,-500.0,0.00021917,2]
[356005972,1741793443050,-500.0,0.00021917,2]
[356005974,1741793443060,-500.0,0.00021917,2]
[356005976,1741793443070,-500.0,0.00021917,2]
[356005978,1741793443079,-500.0,0.00021917,2]
[356005980,1741793443088,-500.0,0.00021917,2]
[356005982,1741793443097,-500.0,0.00021917,2]
[356005984,1741793443109,-347.15894934,0.00021917,2]
[356005986,1741793443119,-1063.33,0.00021917,2]
[356005987,1741793443128,-500.0,0.00021917,2]
[356005989,1741793443137,-500.0,0.00021917,2]
[356005990,1741793443147,-500.0,0.00021917,2]
[356005991,1741793443157,-500.0,0.00021917,2]
[356005992,1741793443166,-500.0,0.00021917,2]
[356005994,1741793443175,-500.0,0.00021917,2]
[356005996,1741793443185,-500.0,0.00021917,2]
[356005997,1741793443196,-500.0,0.00021917,2]
[356005998,1741793443205,-500.0,0.00021917,2]
[356005999,1741793443214,-500.0,0.00021917,2]
[356006000,1741793443224,-500.0,0.00021917,2]
[356006002,1741793443234,-500.0,0.00021917,2]
[356006004,1741793443244,-698.39,0.00021917,2]
[356006006,1741793443253,-500.0,0.00021917,2]
[356006008,1741793443263,-500.0,0.00021917,2]
[356006010,1741793443273,-500.0,0.00021917,2]
[356006013,1741793443283,-500.89211243,0.00021917,2]
[356006014,1741793443292,-500.0,0.00021917,2]
[356006016,1741793443303,-500.0,0.00021917,2]
[356006018,1741793443312,-500.0,0.00021917,2]
[356006020,1741793443322,-500.0,0.00021917,2]
[356006022,1741793443333,-505.49271059,0.00021917,2]
[356006024,1741793443343,-500.0,0.00021917,2]
[356006026,1741793443352,-500.0,0.00021917,2]
[356006027,1741793443362,-500.0,0.00021917,2]
[356006028,1741793443372,-1346.12,0.00021917,2]
[356006029,1741793443382,-500.0,0.00021917,2]
[356006030,1741793443391,-500.0,0.00021917,2]
[356006031,1741793443401,-500.0,0.00021917,2]
[356006032,1741793443410,-500.0,0.00021917,2]
[356006033,1741793443420,-500.0,0.00021917,2]
[356006034,1741793443430,-500.0,0.00021917,2]
[356006035,1741793443439,-500.0,0.00021917,2]
[356006036,1741793443449,-500.0,0.00021917,2]
[356006037,1741793443458,-500.0,0.00021917,2]
[356006038,1741793443468,-500.0,0.00021917,2]
[356006039,1741793443477,-500.0,0.00021917,2]
[356006040,1741793443487,-500.0,0.00021917,2]
[356006041,1741793443496,-511.76007996,0.00021917,2]
[356006042,1741793443506,-500.0,0.00021917,2]
[356006043,1741793443515,-500.0,0.00021917,2]
[356006044,1741793443525,-500.0,0.00021917,2]
[356006045,1741793443534,-500.0,0.00021917,2]
[356006046,1741793443543,-586.2877314,0.00021917,2]
[356006047,1741793443554,-500.0,0.00021917,2]
[356006048,1741793443563,-1073.29,0.00021917,2]
[356006049,1741793443573,-500.0,0.00021917,2]
[356006050,1741793443582,-500.0,0.00021917,2]
[356006051,1741793443592,-711.04,0.00021917,2]
[356006052,1741793443601,-711.04,0.00021917,2]
[356006054,1741793443612,-500.0,0.00021917,2]
[356006056,1741793443621,-500.0,0.00021917,2]
[356006058,1741793443631,-711.04,0.00021917,2]
[356006060,1741793443641,-500.0,0.00021917,2]
[356006062,1741793443650,-711.04,0.00021917,2]
[356006063,1741793443660,-711.04,0.00021917,2]
[356006065,1741793443670,-711.04,0.00021917,2]
[356006067,1741793443679,-711.04,0.00021917,2]
[356006069,1741793443689,-500.0,0.00021917,2]
[356006070,1741793443699,-711.04,0.00021917,2]
[356006071,1741793443709,-514.65951519,0.00021917,2]
[356006073,1741793443718,-711.04,0.00021917,2]
[356006074,1741793443728,-711.04,0.00021917,2]
[356006076,1741793443738,-711.04,0.00021917,2]
[356006078,1741793443748,-711.04,0.00021917,2]
[356006080,1741793443757,-711.04,0.00021917,2]
[356006082,1741793443767,-711.04,0.00021917,2]
[356006083,1741793443776,-500.0,0.00021917,2]
[356006084,1741793443785,-711.04,0.00021917,2]
[356006085,1741793443795,-711.04,0.00021917,2]
[356006086,1741793443805,-1976.23,0.00021917,2]
[356006088,1741793443815,-711.04,0.00021917,2]
[356006091,1741793443824,-711.04,0.00021917,2]
[356006093,1741793443834,-711.04,0.00021917,2]
[356006094,1741793443844,-711.04,0.00021917,2]
[356006095,1741793443853,-711.04,0.00021917,2]
[356006096,1741793443863,-711.04,0.00021917,2]
[356006098,1741793443872,-711.04,0.00021917,2]
[356006100,1741793443882,-711.2,0.00021917,2]
[356006102,1741793443892,-500.0,0.00021917,2]
[356006104,1741793443903,-585.62,0.00021917,2]
[356006105,1741793443912,-683.59,0.00021917,2]
[356006106,1741793443922,-500.0,0.00021917,2]
[356006107,1741793443931,-1143.79,0.00021917,2]
[356006108,1741793443941,-500.0,0.00021917,2]
[356006109,1741793443951,-500.0,0.00021917,2]
[356006110,1741793443960,-400.03262399,0.00021917,2]
[356006111,1741793443970,-550.04,0.00021917,2]
[356006112,1741793443979,-500.0,0.00021917,2]
[356006113,1741793443989,-501.29052873,0.00021917,2]
[356006114,1741793443998,-363.00187439,0.00021917,2]
[356006115,1741793444009,-574.47,0.00021917,2]
[356006116,1741793444018,-504.77159601,0.00021917,2]
[356006117,1741793444028,-500.0,0.00021917,2]
[356006118,1741793444037,-500.0,0.00021917,2]
[356006119,1741793444047,-500.0,0.00021917,2]
[356006120,1741793444056,-500.0,0.00021917,2]
[356006121,1741793444066,-505.12944844,0.00021917,2]
[356006122,1741793444075,-500.0,0.00021917,2]
[356006123,1741793444085,-506.6040403,0.00021917,2]
[356006124,1741793444095,-630.03,0.00021917,2]
[356006125,1741793444105,-501.74341373,0.00021917,2]
[356006126,1741793444117,-520.06858878,0.00021917,2]
[356006127,1741793444127,-500.0,0.00021917,2]
[356006128,1741793444136,-500.0,0.00021917,2]